[Event "Late-Titled-Tuesday-Blitz-February-13-2024"]
[Site "Chess.com"]
[Date "2024.02.13"]
[Round "4"]
[White "yaguigor"]
[Black "Rud_Makarian"]
[Result "0-1"]
[WhiteElo "2620"]
[BlackElo "3042"]
[TimeControl "180+1"]
[EndTime "14:39:28 PST"]
[Termination "Rud_Makarian won by resignation"]

1. e4 {[%clk 0:02:52.1]} 1... d6 {[%clk 0:03:00.9]} 2. d4 {[%clk 0:02:50.3]}
2... Nf6 {[%clk 0:03:01.8]} 3. Nc3 {[%clk 0:02:50.3]} 3... e5 {[%clk 0:03:02.5]}
4. Nf3 {[%clk 0:02:49.7]} 4... Nbd7 {[%clk 0:03:02.4]} 5. Bc4 {[%clk 0:02:50]}
5... Be7 {[%clk 0:03:02.5]} 6. O-O {[%clk 0:02:50]} 6... O-O {[%clk 0:03:03.2]}
7. a4 {[%clk 0:02:50]} 7... c6 {[%clk 0:03:03.8]} 8. Re1 {[%clk 0:02:49.6]} 8...
Qc7 {[%clk 0:03:02.1]} 9. h3 {[%clk 0:02:43.6]} 9... h6 {[%clk 0:03:01.8]} 10.
Ba2 {[%clk 0:02:39.8]} 10... Re8 {[%clk 0:03:01.6]} 11. dxe5 {[%clk 0:02:34.1]}
11... Nxe5 {[%clk 0:02:54.9]} 12. Nd4 {[%clk 0:02:32.3]} 12... Bf8 {[%clk
0:02:53.1]} 13. Bf4 {[%clk 0:02:24]} 13... Bd7 {[%clk 0:02:53.3]} 14. Qd2 {[%clk
0:02:18.9]} 14... Rad8 {[%clk 0:02:50.6]} 15. a5 {[%clk 0:02:07.2]} 15... Bc8
{[%clk 0:02:48.7]} 16. Bb3 {[%clk 0:02:01.8]} 16... a6 {[%clk 0:02:41.4]} 17.
Bh2 {[%clk 0:01:59.5]} 17... Bxh3 {[%clk 0:02:27.1]} 18. gxh3 {[%clk 0:01:39]}
18... c5 {[%clk 0:02:27.1]} 19. Kg2 {[%clk 0:01:12.4]} 19... cxd4 {[%clk
0:02:23.2]} 20. Qxd4 {[%clk 0:01:13]} 20... Qc8 {[%clk 0:02:18]} 21. f4 {[%clk
0:01:08.1]} 21... Nc6 {[%clk 0:02:06.9]} 22. Qc4 {[%clk 0:01:04.1]} 22... Re7
{[%clk 0:01:56]} 23. Bg3 {[%clk 0:00:43]} 23... d5 {[%clk 0:01:04.8]} 24. exd5
{[%clk 0:00:39.7]} 24... Rxe1 {[%clk 0:01:05.4]} 25. Rxe1 {[%clk 0:00:38.5]}
25... Nxa5 {[%clk 0:01:05]} 26. Qxc8 {[%clk 0:00:38.4]} 26... Rxc8 {[%clk
0:01:05.9]} 27. Bh4 {[%clk 0:00:25.1]} 27... Nxb3 {[%clk 0:01:03.8]} 28. Bxf6
{[%clk 0:00:21.6]} 28... Na5 {[%clk 0:00:59.5]} 29. Bd4 {[%clk 0:00:20.9]} 29...
Nc4 {[%clk 0:00:57]} 30. b3 {[%clk 0:00:20.6]} 30... Na3 {[%clk 0:00:54.9]} 31.
Re2 {[%clk 0:00:20.4]} 31... Bb4 {[%clk 0:00:54.6]} 32. Na2 {[%clk 0:00:18.3]}
32... Nxc2 {[%clk 0:00:50.3]} 33. Be5 {[%clk 0:00:16.2]} 33... Ne1+ {[%clk
0:00:40.3]} 34. Kf2 {[%clk 0:00:15.6]} 34... Nd3+ {[%clk 0:00:40]} 35. Kf3
{[%clk 0:00:16]} 35... f6 {[%clk 0:00:37.8]} 36. Nxb4 {[%clk 0:00:14.5]} 36...
Nxb4 {[%clk 0:00:36.4]} 37. Bd4 {[%clk 0:00:14.4]} 37... Nxd5 {[%clk 0:00:36.2]}
38. Re6 {[%clk 0:00:13.3]} 38... Rd8 {[%clk 0:00:29.8]} 39. Bc5 {[%clk
0:00:11.6]} 39... Kf7 {[%clk 0:00:29.4]} 40. Re4 {[%clk 0:00:11.2]} 40... f5
{[%clk 0:00:27.4]} 41. Rd4 {[%clk 0:00:10.6]} 41... Rd7 {[%clk 0:00:26.5]} 42.
Ba3 {[%clk 0:00:10.2]} 42... Nf6 {[%clk 0:00:26.1]} 43. Rc4 {[%clk 0:00:09.6]}
43... Rd3+ {[%clk 0:00:25.3]} 44. Kg2 {[%clk 0:00:09]} 44... Rxb3 {[%clk
0:00:25.7]} 45. Bd6 {[%clk 0:00:08.7]} 45... Ne4 {[%clk 0:00:23.4]} 46. Rc7+
{[%clk 0:00:08.1]} 46... Ke6 {[%clk 0:00:23.5]} 47. Be5 {[%clk 0:00:09]} 47...
g5 {[%clk 0:00:23.8]} 48. Rh7 {[%clk 0:00:07.9]} 48... Kd5 {[%clk 0:00:13.9]}
49. Rxh6 {[%clk 0:00:07.8]} 49... a5 {[%clk 0:00:13.4]} 50. Rh8 {[%clk
0:00:05.9]} 50... a4 {[%clk 0:00:13.1]} 51. Ra8 {[%clk 0:00:06]} 51... a3 {[%clk
0:00:11]} 52. Ra5+ {[%clk 0:00:05.4]} 52... b5 {[%clk 0:00:09.4]} 53. Bb8 {[%clk
0:00:04.3]} 53... g4 {[%clk 0:00:06.8]} 54. h4 {[%clk 0:00:03.9]} 54... Rb2+
{[%clk 0:00:06.7]} 55. Kf1 {[%clk 0:00:03.5]} 55... a2 {[%clk 0:00:06.4]} 0-1

[Event "Late-Titled-Tuesday-Blitz-February-13-2024"]
[Site "Chess.com"]
[Date "2024.02.13"]
[Round "4"]
[White "rhungaski"]
[Black "GothamChess"]
[Result "1-0"]
[WhiteElo "2545"]
[BlackElo "2706"]
[TimeControl "180+1"]
[EndTime "14:39:29 PST"]
[Termination "rhungaski won on time"]

1. e4 {[%clk 0:02:59]} 1... d5 {[%clk 0:02:59.9]} 2. exd5 {[%clk 0:02:58.5]}
2... Qxd5 {[%clk 0:03:00.8]} 3. Nc3 {[%clk 0:02:58.2]} 3... Qa5 {[%clk
0:03:01.1]} 4. b4 {[%clk 0:02:56.1]} 4... Qxb4 {[%clk 0:03:00.7]} 5. Rb1 {[%clk
0:02:56.5]} 5... Qd6 {[%clk 0:03:00.8]} 6. Nf3 {[%clk 0:02:56.9]} 6... Nf6
{[%clk 0:03:01]} 7. d4 {[%clk 0:02:57.2]} 7... a6 {[%clk 0:03:01.4]} 8. a4
{[%clk 0:02:55.8]} 8... g6 {[%clk 0:02:59.1]} 9. Bd3 {[%clk 0:02:49.3]} 9... Bg7
{[%clk 0:02:58.9]} 10. O-O {[%clk 0:02:48.1]} 10... O-O {[%clk 0:02:59.4]} 11.
Rb3 {[%clk 0:02:48.1]} 11... Nc6 {[%clk 0:02:47.2]} 12. Ba3 {[%clk 0:02:45.4]}
12... Qd8 {[%clk 0:02:44.9]} 13. Ne2 {[%clk 0:02:44.7]} 13... Bg4 {[%clk
0:02:28]} 14. Rxb7 {[%clk 0:02:23.8]} 14... Bxf3 {[%clk 0:02:25.1]} 15. gxf3
{[%clk 0:02:24.1]} 15... Nxd4 {[%clk 0:02:18]} 16. Nxd4 {[%clk 0:02:21.2]} 16...
Qxd4 {[%clk 0:02:18.1]} 17. Bxe7 {[%clk 0:01:39.1]} 17... Rfe8 {[%clk
0:02:03.7]} 18. Bxf6 {[%clk 0:01:30.7]} 18... Qxf6 {[%clk 0:01:37.8]} 19. Rxc7
{[%clk 0:00:53.7]} 19... Qg5+ {[%clk 0:01:21.3]} 20. Kh1 {[%clk 0:00:53.2]}
20... Be5 {[%clk 0:01:21.8]} 21. Rc4 {[%clk 0:00:40.8]} 21... Qh6 {[%clk
0:01:20.9]} 22. h4 {[%clk 0:00:37.5]} 22... Rac8 {[%clk 0:00:56.6]} 23. Rg4
{[%clk 0:00:37.2]} 23... Kh8 {[%clk 0:00:50]} 24. Qc1 {[%clk 0:00:36.6]} 24...
Qg7 {[%clk 0:00:36.4]} 25. Kg2 {[%clk 0:00:27.9]} 25... h5 {[%clk 0:00:31.4]}
26. Rc4 {[%clk 0:00:27.5]} 26... Rxc4 {[%clk 0:00:22.2]} 27. Bxc4 {[%clk
0:00:27.4]} 27... Bf6 {[%clk 0:00:21.2]} 28. Qf4 {[%clk 0:00:25.8]} 28... Rc8
{[%clk 0:00:17.6]} 29. Rb1 {[%clk 0:00:23]} 29... Rc5 {[%clk 0:00:13.1]} 30.
Rb8+ {[%clk 0:00:17.3]} 30... Kh7 {[%clk 0:00:13.2]} 31. Rb7 {[%clk 0:00:17.5]}
31... Rf5 {[%clk 0:00:13.2]} 32. Qe4 {[%clk 0:00:17.6]} 32... Ba1 {[%clk
0:00:09.6]} 33. Kf1 {[%clk 0:00:14.8]} 33... Rf6 {[%clk 0:00:07.8]} 34. Qd5
{[%clk 0:00:13.1]} 34... Kg8 {[%clk 0:00:05.6]} 35. Rb8+ {[%clk 0:00:11]} 35...
Kh7 {[%clk 0:00:06]} 36. Rb7 {[%clk 0:00:11]} 36... Kg8 {[%clk 0:00:06.4]} 37.
Bd3 {[%clk 0:00:11.1]} 37... a5 {[%clk 0:00:06.4]} 38. Rb8+ {[%clk 0:00:11.1]}
38... Kh7 {[%clk 0:00:06.6]} 39. Qxh5+ {[%clk 0:00:11]} 39... Qh6 {[%clk
0:00:05]} 40. Rh8+ {[%clk 0:00:10]} 40... Kxh8 {[%clk 0:00:05]} 41. Qxh6+ {[%clk
0:00:10.3]} 41... Kg8 {[%clk 0:00:05.5]} 42. Qe3 {[%clk 0:00:10]} 42... Bb2
{[%clk 0:00:03.5]} 43. Qe4 {[%clk 0:00:09.9]} 43... Kg7 {[%clk 0:00:03.3]} 44.
Kg2 {[%clk 0:00:09.8]} 44... Re6 {[%clk 0:00:03.8]} 45. Qd5 {[%clk 0:00:09.4]}
45... Bf6 {[%clk 0:00:03.8]} 46. Bc4 {[%clk 0:00:09.1]} 46... Bxh4 {[%clk
0:00:03.9]} 47. Qd4+ {[%clk 0:00:07.3]} 47... Bf6 {[%clk 0:00:04.6]} 48. Qc5
{[%clk 0:00:06.7]} 48... Re7 {[%clk 0:00:03.7]} 49. Qxa5 {[%clk 0:00:06.3]}
49... Re5 {[%clk 0:00:04.5]} 50. Bb5 {[%clk 0:00:05.8]} 50... Rg5+ {[%clk
0:00:04.6]} 51. Kf1 {[%clk 0:00:04.1]} 51... Re5 {[%clk 0:00:05.4]} 52. Qc7
{[%clk 0:00:02.4]} 52... Re7 {[%clk 0:00:05.3]} 53. Qc4 {[%clk 0:00:02.6]} 53...
Be5 {[%clk 0:00:04.4]} 54. f4 {[%clk 0:00:03]} 54... Rc7 {[%clk 0:00:04]} 55.
fxe5 {[%clk 0:00:02.6]} 1-0

[Event "Late-Titled-Tuesday-Blitz-February-13-2024"]
[Site "Chess.com"]
[Date "2024.02.13"]
[Round "4"]
[White "Thjop"]
[Black "nj123456"]
[Result "0-1"]
[WhiteElo "2650"]
[BlackElo "2387"]
[TimeControl "180+1"]
[EndTime "14:39:31 PST"]
[Termination "nj123456 won by resignation"]

1. e4 {[%clk 0:03:00.9]} 1... c6 {[%clk 0:03:00.2]} 2. d3 {[%clk 0:02:57.3]}
2... d5 {[%clk 0:03:01.1]} 3. Nd2 {[%clk 0:02:57.6]} 3... e5 {[%clk 0:03:00.1]}
4. Ngf3 {[%clk 0:02:57.9]} 4... Bd6 {[%clk 0:03:00.1]} 5. d4 {[%clk 0:02:58.5]}
5... exd4 {[%clk 0:02:58.3]} 6. Bd3 {[%clk 0:02:58.7]} 6... Bg4 {[%clk
0:02:55.2]} 7. O-O {[%clk 0:02:56.5]} 7... Ne7 {[%clk 0:02:52.8]} 8. h3 {[%clk
0:02:53.3]} 8... Bh5 {[%clk 0:02:50.7]} 9. Re1 {[%clk 0:02:53]} 9... O-O {[%clk
0:02:49.4]} 10. e5 {[%clk 0:02:40.9]} 10... Bc5 {[%clk 0:02:41.8]} 11. Nf1
{[%clk 0:02:28.4]} 11... Bg6 {[%clk 0:02:37.8]} 12. Ng3 {[%clk 0:02:19.6]} 12...
Nd7 {[%clk 0:02:26]} 13. h4 {[%clk 0:02:09.6]} 13... Re8 {[%clk 0:02:23.9]} 14.
h5 {[%clk 0:02:04.7]} 14... Bxd3 {[%clk 0:02:23.4]} 15. Qxd3 {[%clk 0:02:04.7]}
15... Nf8 {[%clk 0:02:24]} 16. h6 {[%clk 0:02:00.7]} 16... g6 {[%clk 0:02:18]}
17. Nxd4 {[%clk 0:01:51]} 17... Qb6 {[%clk 0:02:15.5]} 18. c3 {[%clk 0:01:47]}
18... Bxd4 {[%clk 0:02:07.1]} 19. cxd4 {[%clk 0:01:47]} 19... Ne6 {[%clk
0:02:07.6]} 20. Be3 {[%clk 0:01:42.9]} 20... a5 {[%clk 0:02:02]} 21. f4 {[%clk
0:01:34.6]} 21... Qa6 {[%clk 0:02:01.5]} 22. Qb1 {[%clk 0:01:15.9]} 22... Qc4
{[%clk 0:01:55.6]} 23. Rc1 {[%clk 0:01:01.1]} 23... Qb4 {[%clk 0:01:51.6]} 24.
a3 {[%clk 0:01:00.6]} 24... Qb3 {[%clk 0:01:51.5]} 25. Rc3 {[%clk 0:01:00.7]}
25... Qb6 {[%clk 0:01:41]} 26. Qd3 {[%clk 0:00:56.3]} 26... Qa6 {[%clk
0:01:39.2]} 27. Qc2 {[%clk 0:00:52.7]} 27... Qb6 {[%clk 0:01:37.9]} 28. Rd1
{[%clk 0:00:52.6]} 28... Nf8 {[%clk 0:01:31.4]} 29. f5 {[%clk 0:00:49.3]} 29...
a4 {[%clk 0:01:27]} 30. Rd2 {[%clk 0:00:45.1]} 30... Ra5 {[%clk 0:01:26.6]} 31.
f6 {[%clk 0:00:15.1]} 31... Nc8 {[%clk 0:01:20.2]} 32. Ne2 {[%clk 0:00:16]}
32... Ne6 {[%clk 0:01:19.7]} 33. Nf4 {[%clk 0:00:15.9]} 33... Nxf4 {[%clk
0:01:17.7]} 34. Bxf4 {[%clk 0:00:16.8]} 34... Qa6 {[%clk 0:01:15.5]} 35. Kh2
{[%clk 0:00:16.9]} 35... Nb6 {[%clk 0:01:14.7]} 36. Re2 {[%clk 0:00:15.9]} 36...
Nc4 {[%clk 0:01:13.8]} 37. Qd3 {[%clk 0:00:15.3]} 37... Re6 {[%clk 0:01:12.2]}
38. Bc1 {[%clk 0:00:14.1]} 38... b5 {[%clk 0:01:11.7]} 39. g4 {[%clk 0:00:14.3]}
39... Qb7 {[%clk 0:01:10.7]} 40. Kg3 {[%clk 0:00:14.7]} 40... Ra8 {[%clk
0:01:10.3]} 41. Rcc2 {[%clk 0:00:14.4]} 41... Qb8 {[%clk 0:01:09.6]} 42. Bf4
{[%clk 0:00:14.2]} 42... Qb7 {[%clk 0:01:09.9]} 43. Bd2 {[%clk 0:00:14.2]} 43...
Qa6 {[%clk 0:01:10.2]} 44. Bb4 {[%clk 0:00:14.5]} 44... Qb7 {[%clk 0:01:10.6]}
45. Kh4 {[%clk 0:00:14.9]} 45... Qc8 {[%clk 0:01:07.7]} 46. Bc5 {[%clk
0:00:15.1]} 46... Qb7 {[%clk 0:01:07.8]} 47. Qc3 {[%clk 0:00:15.3]} 47... Qc8
{[%clk 0:01:07.1]} 48. Qb4 {[%clk 0:00:15.6]} 48... Qe8 {[%clk 0:01:05.8]} 49.
Qc3 {[%clk 0:00:14.5]} 49... Qc8 {[%clk 0:01:05.6]} 50. g5 {[%clk 0:00:14.1]}
50... Re8 {[%clk 0:01:04.5]} 51. Qh3 {[%clk 0:00:14.3]} 51... Qxh3+ {[%clk
0:01:03.8]} 52. Kxh3 {[%clk 0:00:15.2]} 52... Re6 {[%clk 0:01:04.4]} 53. Kg4
{[%clk 0:00:15.7]} 53... Ra6 {[%clk 0:01:03.7]} 54. Kf4 {[%clk 0:00:16.1]} 54...
Ra8 {[%clk 0:01:03]} 55. Kf3 {[%clk 0:00:15.2]} 55... Ra6 {[%clk 0:01:03.1]} 56.
Kf4 {[%clk 0:00:15.7]} 56... Ra8 {[%clk 0:01:03.6]} 57. Re1 {[%clk 0:00:16.3]}
57... Ra6 {[%clk 0:01:03.9]} 58. Ra1 {[%clk 0:00:16.5]} 58... Ra8 {[%clk
0:01:03.9]} 59. Kf3 {[%clk 0:00:16.5]} 59... Ra6 {[%clk 0:01:03.9]} 60. Ke2
{[%clk 0:00:17]} 60... Ra8 {[%clk 0:01:04]} 61. Kd3 {[%clk 0:00:17.5]} 61... Ra6
{[%clk 0:01:04.1]} 62. Rb1 {[%clk 0:00:17]} 62... Re8 {[%clk 0:01:01.5]} 63. Re2
{[%clk 0:00:16]} 63... Ra5 {[%clk 0:00:57.6]} 64. Kc3 {[%clk 0:00:16.2]} 64...
Ra6 {[%clk 0:00:57.7]} 65. Bb4 {[%clk 0:00:16.1]} 65... Re6 {[%clk 0:00:57.1]}
66. Bc5 {[%clk 0:00:16.4]} 66... Re8 {[%clk 0:00:57.2]} 67. Kb4 {[%clk
0:00:16.3]} 67... Raa8 {[%clk 0:00:56.7]} 68. Rbe1 {[%clk 0:00:14]} 68... Re6
{[%clk 0:00:56.2]} 69. Kc3 {[%clk 0:00:13.8]} 69... Ra6 {[%clk 0:00:55.9]} 70.
Ra1 {[%clk 0:00:13.1]} 70... Ra8 {[%clk 0:00:56.1]} 71. Be7 {[%clk 0:00:13]}
71... Ra6 {[%clk 0:00:55.4]} 72. b3 {[%clk 0:00:13]} 72... axb3 {[%clk
0:00:55.5]} 73. Kxb3 {[%clk 0:00:13.9]} 73... Ra4 {[%clk 0:00:56.1]} 74. Rc2
{[%clk 0:00:13.5]} 74... Na5+ {[%clk 0:00:52.6]} 75. Ka2 {[%clk 0:00:12.6]}
75... Nc4 {[%clk 0:00:52]} 76. Rc3 {[%clk 0:00:13]} 76... Na5 {[%clk 0:00:50.5]}
77. Rb3 {[%clk 0:00:11.3]} 77... Nxb3 {[%clk 0:00:49.7]} 78. Kxb3 {[%clk
0:00:11.4]} 78... Rxd4 {[%clk 0:00:50.1]} 79. Rc1 {[%clk 0:00:11]} 79... Rc4
{[%clk 0:00:49.8]} 80. Bd6 {[%clk 0:00:11.5]} 80... Rxc1 {[%clk 0:00:49.4]} 0-1

[Event "Late-Titled-Tuesday-Blitz-February-13-2024"]
[Site "Chess.com"]
[Date "2024.02.13"]
[Round "4"]
[White "GM4life"]
[Black "Rodalquilar"]
[Result "0-1"]
[WhiteElo "2543"]
[BlackElo "2774"]
[TimeControl "180+1"]
[EndTime "14:39:33 PST"]
[Termination "Rodalquilar won by resignation"]

1. d4 {[%clk 0:03:00.9]} 1... d5 {[%clk 0:02:59.3]} 2. c4 {[%clk 0:03:01]} 2...
e6 {[%clk 0:02:59.5]} 3. Nc3 {[%clk 0:03:00.1]} 3... a6 {[%clk 0:02:59.5]} 4.
cxd5 {[%clk 0:02:55.9]} 4... exd5 {[%clk 0:03:00.4]} 5. Bf4 {[%clk 0:02:55.6]}
5... Nf6 {[%clk 0:03:00.6]} 6. e3 {[%clk 0:02:55.3]} 6... Bd6 {[%clk 0:03:01]}
7. Nge2 {[%clk 0:02:49]} 7... O-O {[%clk 0:02:52.3]} 8. Bxd6 {[%clk 0:02:48.5]}
8... Qxd6 {[%clk 0:02:52.2]} 9. Nf4 {[%clk 0:02:49]} 9... Re8 {[%clk 0:02:48]}
10. Be2 {[%clk 0:02:47.9]} 10... Bf5 {[%clk 0:02:40.5]} 11. O-O {[%clk
0:02:46.6]} 11... Nbd7 {[%clk 0:02:40.7]} 12. Bf3 {[%clk 0:02:37.8]} 12... c6
{[%clk 0:02:40.3]} 13. Rc1 {[%clk 0:02:37]} 13... a5 {[%clk 0:02:39.8]} 14. Na4
{[%clk 0:02:32.1]} 14... Ne4 {[%clk 0:02:22.5]} 15. Nd3 {[%clk 0:02:30.5]} 15...
Qg6 {[%clk 0:02:18.4]} 16. Nf4 {[%clk 0:02:26.5]} 16... Qh6 {[%clk 0:02:17.1]}
17. Bxe4 {[%clk 0:02:12]} 17... Bxe4 {[%clk 0:02:16.4]} 18. Nc3 {[%clk 0:02:10]}
18... Bf5 {[%clk 0:02:13.7]} 19. Qf3 {[%clk 0:02:09.4]} 19... Qf6 {[%clk
0:02:08.1]} 20. Nfxd5 {[%clk 0:01:57.1]} 20... cxd5 {[%clk 0:02:05]} 21. Nxd5
{[%clk 0:01:58]} 21... Qg6 {[%clk 0:01:30.8]} 22. Nc7 {[%clk 0:01:56.9]} 22...
Be4 {[%clk 0:01:31.1]} 23. Qg3 {[%clk 0:01:55.6]} 23... Qxg3 {[%clk 0:01:27.9]}
24. hxg3 {[%clk 0:01:55.5]} 24... Nf6 {[%clk 0:01:18.5]} 25. f3 {[%clk
0:01:52.4]} 25... Bd5 {[%clk 0:01:07.5]} 26. Nxa8 {[%clk 0:01:42.6]} 26... Rxa8
{[%clk 0:01:06.4]} 27. a3 {[%clk 0:01:38.4]} 27... b5 {[%clk 0:01:05.3]} 28. Rc5
{[%clk 0:01:35.4]} 28... Bc4 {[%clk 0:01:04.4]} 29. Rd1 {[%clk 0:01:27.8]} 29...
a4 {[%clk 0:01:04.7]} 30. e4 {[%clk 0:01:24.3]} 30... h5 {[%clk 0:01:00]} 31.
Kf2 {[%clk 0:01:20.3]} 31... g6 {[%clk 0:00:59.7]} 32. Ke3 {[%clk 0:01:20.3]}
32... Kg7 {[%clk 0:00:59]} 33. d5 {[%clk 0:01:20.1]} 33... Nd7 {[%clk
0:00:48.9]} 34. Rc7 {[%clk 0:01:18.5]} 34... Ne5 {[%clk 0:00:49.3]} 35. f4
{[%clk 0:01:17.9]} 35... Ng4+ {[%clk 0:00:48.3]} 36. Kd4 {[%clk 0:01:15.9]}
36... Re8 {[%clk 0:00:48.4]} 37. e5 {[%clk 0:01:14.9]} 37... Bxd5 {[%clk
0:00:46.7]} 38. Rd2 {[%clk 0:01:08.7]} 38... Bc4 {[%clk 0:00:44.3]} 39. Kc3
{[%clk 0:01:07.3]} 39... Ne3 {[%clk 0:00:43.6]} 40. Rcd7 {[%clk 0:00:44.1]}
40... Rc8 {[%clk 0:00:42.1]} 41. Kb4 {[%clk 0:00:42.2]} 41... Nf5 {[%clk
0:00:35.8]} 42. Rb7 {[%clk 0:00:37.9]} 42... Nxg3 {[%clk 0:00:34.4]} 43. Rdd7
{[%clk 0:00:29.3]} 43... Ne2 {[%clk 0:00:30]} 44. f5 {[%clk 0:00:22.5]} 44...
gxf5 {[%clk 0:00:29.6]} 45. Re7 {[%clk 0:00:22.3]} 45... Nf4 {[%clk 0:00:29.4]}
46. Red7 {[%clk 0:00:20.3]} 46... Nxg2 {[%clk 0:00:28.9]} 47. Rd4 {[%clk
0:00:19]} 47... Ne3 {[%clk 0:00:27.1]} 48. Rh4 {[%clk 0:00:17.7]} 48... Kg6
{[%clk 0:00:25.3]} 49. Rh2 {[%clk 0:00:17.4]} 49... f4 {[%clk 0:00:23.9]} 50.
Rb6+ {[%clk 0:00:16.1]} 50... Kg5 {[%clk 0:00:20.6]} 51. Rb7 {[%clk 0:00:13.7]}
51... f3 {[%clk 0:00:20.4]} 52. Rf2 {[%clk 0:00:13]} 52... Kf4 {[%clk
0:00:18.7]} 53. Rb6 {[%clk 0:00:09]} 53... Ng4 {[%clk 0:00:18.3]} 54. Rc2 {[%clk
0:00:03.5]} 54... f2 {[%clk 0:00:18.4]} 55. Rxb5 {[%clk 0:00:03.3]} 55... Bxb5
{[%clk 0:00:17.4]} 56. Rxf2+ {[%clk 0:00:03.4]} 56... Nxf2 {[%clk 0:00:17.5]}
57. Kxb5 {[%clk 0:00:04.3]} 57... Kxe5 {[%clk 0:00:17.9]} 58. Kxa4 {[%clk
0:00:04.9]} 58... Rb8 {[%clk 0:00:17.7]} 59. b4 {[%clk 0:00:05.5]} 59... Nd3
{[%clk 0:00:18.2]} 60. Kb3 {[%clk 0:00:06]} 60... Nxb4 {[%clk 0:00:18.5]} 61.
axb4 {[%clk 0:00:06.5]} 61... Rxb4+ {[%clk 0:00:19.2]} 62. Kxb4 {[%clk
0:00:06.8]} 62... h4 {[%clk 0:00:19.8]} 63. Kc3 {[%clk 0:00:07]} 63... h3 {[%clk
0:00:20.4]} 64. Kd2 {[%clk 0:00:07.4]} 64... h2 {[%clk 0:00:20.9]} 65. Ke3
{[%clk 0:00:07.1]} 65... h1=Q {[%clk 0:00:21.4]} 66. Kf2 {[%clk 0:00:06.8]}
66... Qe4 {[%clk 0:00:21.4]} 67. Kg3 {[%clk 0:00:07.1]} 67... Kf5 {[%clk
0:00:22]} 68. Kf2 {[%clk 0:00:06.9]} 68... Qd3 {[%clk 0:00:21.5]} 69. Kg2 {[%clk
0:00:06.9]} 69... Qe3 {[%clk 0:00:21.8]} 70. Kf1 {[%clk 0:00:07]} 70... Qd2
{[%clk 0:00:22.2]} 71. Kg1 {[%clk 0:00:07.3]} 71... Qe2 {[%clk 0:00:22.8]} 0-1

[Event "Late-Titled-Tuesday-Blitz-February-13-2024"]
[Site "Chess.com"]
[Date "2024.02.13"]
[Round "4"]
[White "ukchessbomber"]
[Black "TheAlienParty"]
[Result "0-1"]
[WhiteElo "2585"]
[BlackElo "2411"]
[TimeControl "180+1"]
[EndTime "14:39:34 PST"]
[Termination "TheAlienParty won by resignation"]

1. c3 {[%clk 0:03:00.9]} 1... g6 {[%clk 0:02:56.7]} 2. d4 {[%clk 0:03:00.7]}
2... Bg7 {[%clk 0:02:56.3]} 3. h4 {[%clk 0:02:58.7]} 3... h6 {[%clk 0:02:54.2]}
4. Bd2 {[%clk 0:02:58.5]} 4... b6 {[%clk 0:02:52.7]} 5. e4 {[%clk 0:02:57.8]}
5... Bb7 {[%clk 0:02:52.4]} 6. Bd3 {[%clk 0:02:58.7]} 6... e6 {[%clk 0:02:50]}
7. Ne2 {[%clk 0:02:54.3]} 7... Ne7 {[%clk 0:02:49.3]} 8. Qc1 {[%clk 0:02:54]}
8... d5 {[%clk 0:02:47.1]} 9. e5 {[%clk 0:02:53.4]} 9... c5 {[%clk 0:02:46.8]}
10. h5 {[%clk 0:02:54]} 10... Nbc6 {[%clk 0:02:41]} 11. hxg6 {[%clk 0:02:53.5]}
11... fxg6 {[%clk 0:02:37.3]} 12. Bxh6 {[%clk 0:02:53.9]} 12... Nf5 {[%clk
0:02:32.6]} 13. Bxf5 {[%clk 0:02:49.2]} 13... gxf5 {[%clk 0:02:30.7]} 14. Rh3
{[%clk 0:02:48]} 14... Qe7 {[%clk 0:02:13.1]} 15. Bg5 {[%clk 0:02:39.3]} 15...
Rxh3 {[%clk 0:02:11.7]} 16. gxh3 {[%clk 0:02:39.3]} 16... Qf7 {[%clk 0:02:10.2]}
17. Qe3 {[%clk 0:02:39.5]} 17... Kd7 {[%clk 0:02:00.4]} 18. Na3 {[%clk
0:02:37.1]} 18... c4 {[%clk 0:01:59.3]} 19. Kd2 {[%clk 0:02:00]} 19... a6 {[%clk
0:01:57.2]} 20. Rg1 {[%clk 0:01:59.5]} 20... b5 {[%clk 0:01:56.6]} 21. Bh6
{[%clk 0:01:39.5]} 21... Rg8 {[%clk 0:01:43.7]} 22. Bxg7 {[%clk 0:01:32.5]}
22... Rxg7 {[%clk 0:01:43.4]} 23. Qh6 {[%clk 0:01:32.5]} 23... Rh7 {[%clk
0:01:39.8]} 24. Qf6 {[%clk 0:01:30.4]} 24... Qxf6 {[%clk 0:01:36.9]} 25. exf6
{[%clk 0:01:30.4]} 25... Ke8 {[%clk 0:01:36.5]} 26. Nf4 {[%clk 0:00:20.4]} 26...
Kf7 {[%clk 0:01:36.1]} 27. Nc2 {[%clk 0:00:07.4]} 27... Bc8 {[%clk 0:01:33.3]}
28. a4 {[%clk 0:00:07.8]} 28... Kxf6 {[%clk 0:01:31.7]} 29. axb5 {[%clk
0:00:08.3]} 29... axb5 {[%clk 0:01:31.2]} 30. Rg8 {[%clk 0:00:08]} 30... Bd7
{[%clk 0:01:30.7]} 31. Na3 {[%clk 0:00:05.5]} 31... b4 {[%clk 0:01:30.1]} 32.
cxb4 {[%clk 0:00:05.7]} 32... Nxb4 {[%clk 0:01:29]} 33. Rb8 {[%clk 0:00:03.7]}
33... Nc6 {[%clk 0:01:27.7]} 34. Rb6 {[%clk 0:00:04.4]} 34... Ke7 {[%clk
0:01:16.8]} 35. Ke3 {[%clk 0:00:04.9]} 35... Rh4 {[%clk 0:01:13.4]} 36. Nb5
{[%clk 0:00:03.6]} 36... Rh6 {[%clk 0:01:06]} 37. Rb7 {[%clk 0:00:03.7]} 37...
Kd8 {[%clk 0:00:59.8]} 38. Nd6 {[%clk 0:00:03.3]} 38... Bc8 {[%clk 0:00:40.2]}
39. Nf7+ {[%clk 0:00:02.7]} 39... Ke8 {[%clk 0:00:38.7]} 40. Nxh6 {[%clk
0:00:03.2]} 40... Bxb7 {[%clk 0:00:38.4]} 41. Nxe6 {[%clk 0:00:04.1]} 41... Ke7
{[%clk 0:00:37.7]} 42. Nc5 {[%clk 0:00:04.4]} 42... Bc8 {[%clk 0:00:36.2]} 43.
Kf4 {[%clk 0:00:04.1]} 43... Kf6 {[%clk 0:00:35.7]} 44. Ng8+ {[%clk 0:00:04.4]}
44... Kg7 {[%clk 0:00:34.9]} 45. Ke3 {[%clk 0:00:03.6]} 45... Kxg8 {[%clk
0:00:34.5]} 46. b3 {[%clk 0:00:04.5]} 46... cxb3 {[%clk 0:00:33.1]} 47. Nxb3
{[%clk 0:00:04.9]} 47... Kf7 {[%clk 0:00:32.7]} 48. Kf4 {[%clk 0:00:05.4]} 48...
Kf6 {[%clk 0:00:32.6]} 49. h4 {[%clk 0:00:05.7]} 49... Ne7 {[%clk 0:00:30.7]}
50. Nd2 {[%clk 0:00:04.6]} 50... Ng6+ {[%clk 0:00:29.9]} 51. Kg3 {[%clk
0:00:05.3]} 51... f4+ {[%clk 0:00:29.1]} 52. Kf3 {[%clk 0:00:06]} 52... Kf5
{[%clk 0:00:28]} 53. h5 {[%clk 0:00:06.5]} 53... Nh4+ {[%clk 0:00:27.6]} 54. Ke2
{[%clk 0:00:07.2]} 54... Ba6+ {[%clk 0:00:26.2]} 55. Ke1 {[%clk 0:00:04.5]}
55... Kg5 {[%clk 0:00:25.6]} 56. Nb1 {[%clk 0:00:02.6]} 56... Kxh5 {[%clk
0:00:24.6]} 57. Nc3 {[%clk 0:00:03.1]} 57... Bc4 {[%clk 0:00:24.5]} 58. Nb1
{[%clk 0:00:01.7]} 58... Kg4 {[%clk 0:00:23.7]} 59. Na3 {[%clk 0:00:01.6]} 59...
Ng2+ {[%clk 0:00:23.1]} 60. Kd2 {[%clk 0:00:01.8]} 60... Bf1 {[%clk 0:00:21.9]}
61. Nc2 {[%clk 0:00:01.3]} 61... Kf3 {[%clk 0:00:20]} 62. Nb4 {[%clk 0:00:01.9]}
62... Bc4 {[%clk 0:00:19.4]} 63. Kc3 {[%clk 0:00:02.2]} 63... Kxf2 {[%clk
0:00:19.2]} 64. Nc6 {[%clk 0:00:03.1]} 64... Ke3 {[%clk 0:00:18.7]} 65. Ne5
{[%clk 0:00:03.9]} 65... f3 {[%clk 0:00:18.4]} 66. Ng4+ {[%clk 0:00:03.8]} 66...
Kf4 {[%clk 0:00:18]} 67. Kb4 {[%clk 0:00:04.7]} 67... Kxg4 {[%clk 0:00:17.7]}
0-1